fUST/lending_fUST_20251006
["ID","MTS","AMOUNT","RATE_DAILY","PERIOD"]
[389541963,1759708245121,-500.0,0.00016986,2]
[389541964,1759708245131,-500.0,0.00016986,2]
[389541965,1759708245140,-480.0,0.00016986,2]
[389541966,1759708245149,-500.0,0.00016986,2]
[389541967,1759708245158,-722.31,0.00016986,2]
[389541968,1759708245167,-480.0,0.00016986,2]
[389541969,1759708245176,-500.0,0.00016986,2]
[389541970,1759708245185,-1232.15,0.00016986,2]
[389541971,1759708245194,-500.0,0.00016986,2]
[389541972,1759708245203,-500.0,0.00016986,2]
[389541973,1759708245214,-4267.66,0.00016986,2]
[389541974,1759708245224,-204.85,0.00016986,2]
[389541975,1759708245234,-192.06,0.00016986,2]
[389541976,1759708245244,-500.0,0.00016986,2]
[389541977,1759708245254,-500.0,0.00016986,2]
[389541978,1759708245263,-500.0,0.00016986,2]
[389541979,1759708245273,-500.0,0.00016986,2]
[389541980,1759708245284,-500.0,0.00016986,2]
[389541981,1759708245294,-1119.55,0.00016986,2]
[389541982,1759708245304,-513.2,0.00016986,2]
[389541983,1759708245313,-500.0,0.00016986,2]
[389541984,1759708245323,-543.09602212,0.0001699,2]
[389541985,1759708245332,-353.0,0.00017034,2]
[389541986,1759708245341,-2789.31617256,0.00017059,2]
[389541987,1759708245351,-18603.8837,0.00017105,2]
[389541988,1759708245360,-252.21901886,0.00017105,2]
[389541989,1759708245369,-2030.296672,0.00017105,2]
[389541990,1759708245378,-348.0,0.00017138,2]
[389541991,1759708245388,-2105.41764886,0.0001716,2]
[389541992,1759708245397,-2116.64631065,0.00017215,2]
[389541993,1759708245406,-389.6,0.0001726,2]
[389541994,1759708245415,-500.0,0.0001726,2]
[389541995,1759708245424,-500.0,0.0001726,2]
[389541996,1759708245432,-459.65,0.0001726,2]
[389541997,1759708245442,-500.0,0.0001726,2]
[389541998,1759708245455,-500.0,0.0001726,2]
[389541999,1759708245464,-500.0,0.0001726,2]
[389542000,1759708245473,-500.0,0.0001726,2]
[389542001,1759708245481,-500.0,0.0001726,2]
[389542002,1759708245491,-500.0,0.0001726,2]
[389542003,1759708245500,-500.0,0.0001726,2]
[389542004,1759708245509,-500.0,0.0001726,2]
[389542005,1759708245518,-500.0,0.0001726,2]
[389542006,1759708245529,-500.0,0.0001726,2]
[389542007,1759708245538,-595.9,0.0001726,2]
[389542008,1759708245547,-500.0,0.0001726,2]
[389542009,1759708245556,-500.0,0.0001726,2]
[389542010,1759708245565,-500.0,0.0001726,2]
[389542011,1759708245574,-500.0,0.0001726,2]
[389542012,1759708245584,-500.0,0.0001726,2]
[389542013,1759708245593,-500.0,0.0001726,2]
[389542014,1759708245604,-500.0,0.0001726,2]
[389542015,1759708245613,-500.0,0.0001726,2]
[389542016,1759708245624,-1218.9,0.0001726,2]
[389542017,1759708245633,-594.9,0.0001726,2]
[389542018,1759708245643,-205.90082544,0.0001726,2]
[389542019,1759708245653,-642.5,0.0001726,2]
[389542020,1759708245662,-558.64,0.0001726,2]
[389542021,1759708245672,-500.0,0.0001726,2]
[389542022,1759708245682,-500.0,0.0001726,2]
[389542023,1759708245693,-500.0,0.0001726,2]
[389542024,1759708245702,-500.0,0.0001726,2]
[389542025,1759708245712,-1014.98,0.0001726,2]
[389542026,1759708245721,-500.0,0.0001726,2]
[389542027,1759708245731,-500.0,0.0001726,2]
[389542028,1759708245740,-640.19,0.0001726,2]
[389542029,1759708245750,-500.0,0.0001726,2]
[389542030,1759708245759,-420.0,0.0001726,2]
[389542031,1759708245769,-500.0,0.0001726,2]
[389542032,1759708245779,-779.48,0.0001726,2]
[389542033,1759708245789,-500.0,0.0001726,2]
[389542034,1759708245799,-500.0,0.0001726,2]
[389542035,1759708245808,-500.0,0.0001726,2]
[389542036,1759708245817,-500.0,0.0001726,2]
[389542037,1759708245830,-500.0,0.0001726,2]
[389542038,1759708245840,-500.0,0.0001726,2]
[389542039,1759708245849,-548.08,0.0001726,2]
[389542040,1759708245859,-500.0,0.0001726,2]
[389542041,1759708245869,-500.0,0.0001726,2]
[389542042,1759708245879,-312.6286503,0.0001726,2]
[389542043,1759708245888,-500.0,0.0001726,2]
[389542044,1759708245897,-500.0,0.0001726,2]
[389542045,1759708245907,-1104.3,0.0001726,2]
[389542046,1759708245917,-766.56,0.0001726,2]
[389542048,1759708245927,-500.0,0.0001726,2]
[389542050,1759708245936,-704.45,0.0001726,2]
[389542051,1759708245946,-500.0,0.0001726,2]
[389542052,1759708245956,-500.0,0.0001726,2]
[389542053,1759708245965,-8991.3,0.0001726,2]
[389542054,1759708245974,-500.0,0.0001726,2]
[389542055,1759708245984,-500.0,0.0001726,2]
[389542057,1759708245993,-2614.35,0.0001726,2]
[389542058,1759708246003,-622.82,0.0001726,2]
[389542059,1759708246012,-5705.02,0.0001726,2]
[389542060,1759708246022,-500.0,0.0001726,2]
[389542061,1759708246032,-1451.45,0.0001726,2]
[389542062,1759708246042,-1045.01,0.0001726,2]
[389542063,1759708246051,-500.0,0.0001726,2]
[389542065,1759708246061,-2677.65,0.0001726,2]
[389542067,1759708246070,-1053.86,0.0001726,2]
[389542068,1759708246079,-500.0,0.0001726,2]
[389542070,1759708246089,-3129.37,0.0001726,2]
[389542072,1759708246098,-586.37,0.0001726,2]
[389542074,1759708246109,-500.0,0.0001726,2]
[389542075,1759708246118,-162.39,0.0001726,2]
[389542076,1759708246127,-666.22,0.0001726,2]
[389542077,1759708246137,-702.75,0.0001726,2]
[389542078,1759708246147,-500.0,0.0001726,2]
[389542079,1759708246158,-1007.36,0.0001726,2]
[389542080,1759708246168,-500.0,0.0001726,2]
[389542081,1759708246178,-610.49,0.0001726,2]
[389542082,1759708246190,-872.35,0.0001726,2]
[389542083,1759708246201,-500.0,0.0001726,2]
[389542085,1759708246210,-606.83,0.0001726,2]
[389542086,1759708246219,-669.2,0.0001726,2]
[389542088,1759708246229,-8547.32,0.0001726,2]
[389542089,1759708246239,-890.81,0.0001726,2]
[389542090,1759708246248,-517.96,0.0001726,2]
[389542091,1759708246257,-3134.77,0.0001726,2]
[389542092,1759708246267,-1241.09,0.0001726,2]
[389542093,1759708246276,-547.15,0.0001726,2]
[389542094,1759708246286,-500.0,0.0001726,2]
[389542095,1759708246296,-500.0,0.0001726,2]
[389542096,1759708246305,-2628.08,0.0001726,2]
[389542097,1759708246315,-2505.47,0.0001726,2]
[389542098,1759708246324,-2193.08,0.0001726,2]
[389542099,1759708246335,-500.0,0.0001726,2]
[389542100,1759708246345,-500.0,0.0001726,2]
[389542101,1759708246354,-500.0,0.0001726,2]
[389542102,1759708246364,-500.0,0.0001726,2]
[389542103,1759708246374,-500.0,0.0001726,2]
[389542104,1759708246383,-500.0,0.0001726,2]
[389542105,1759708246393,-500.0,0.0001726,2]
[389542106,1759708246402,-719.52,0.0001726,2]
[389542107,1759708246411,-1938.28,0.0001726,2]
[389542108,1759708246422,-992.54,0.0001726,2]
[389542109,1759708246432,-2144.27,0.0001726,2]
[389542110,1759708246442,-500.0,0.0001726,2]
[389542111,1759708246457,-1530.24,0.0001726,2]
[389542112,1759708246466,-330.12,0.0001726,2]
[389542113,1759708246475,-7479.04,0.0001726,2]
[389542114,1759708246484,-500.0,0.0001726,2]
[389542115,1759708246494,-799.91,0.0001726,2]
[389542116,1759708246503,-657.92,0.0001726,2]
[389542117,1759708246512,-500.0,0.0001726,2]
[389542118,1759708246521,-902.89,0.0001726,2]
[389542119,1759708246531,-1346.47,0.0001726,2]
[389542121,1759708246541,-152.92,0.0001726,2]
[389542122,1759708246549,-379.9797483,0.0001726,2]
[389542123,1759708246559,-500.0,0.0001726,2]
[389542124,1759708246568,-722.31,0.0001726,2]
[389542125,1759708246578,-500.0,0.0001726,2]
[389542126,1759708246587,-1232.15,0.0001726,2]
[389542127,1759708246597,-500.0,0.0001726,2]
[389542128,1759708246606,-4267.66,0.0001726,2]
[389542129,1759708246615,-500.0,0.0001726,2]
[389542130,1759708246625,-500.0,0.0001726,2]
[389542131,1759708246634,-500.0,0.0001726,2]
[389542132,1759708246644,-500.0,0.0001726,2]
[389542133,1759708246653,-500.0,0.0001726,2]
[389542134,1759708246663,-1119.55,0.0001726,2]
[389542135,1759708246672,-513.2,0.0001726,2]
[389542136,1759708246681,-171.12,0.00017278,2]
[389542137,1759708246690,-151.0,0.000174,2]
[389542138,1759708246700,-196.97,0.00017403,2]
[389542139,1759708246709,-2789.31617256,0.00017506,2]
[389542140,1759708246719,-500.0,0.00017534,2]
[389542141,1759708246728,-500.0,0.00017534,2]
[389542142,1759708246738,-500.0,0.00017534,2]
[389542143,1759708246747,-500.0,0.00017534,2]
[389542144,1759708246756,-500.0,0.00017534,2]
[389542145,1759708246766,-500.0,0.00017534,2]
[389542146,1759708246775,-500.0,0.00017534,2]
[389542147,1759708246785,-500.0,0.00017534,2]
[389542148,1759708246794,-500.0,0.00017534,2]
[389542149,1759708246804,-500.0,0.00017534,2]
[389542150,1759708246822,-500.0,0.00017534,2]
[389542151,1759708246844,-304.8287708,0.00017534,2]
[389542152,1759708246866,-595.9,0.00017534,2]
[389542153,1759708246889,-500.0,0.00017534,2]
[389542154,1759708246913,-500.0,0.00017534,2]
[389542155,1759708246934,-500.0,0.00017534,2]
[389542156,1759708246955,-483.99703503,0.00017534,2]
[389542157,1759708246977,-500.0,0.00017534,2]
[389542158,1759708247000,-500.0,0.00017534,2]
[389542159,1759708247022,-500.0,0.00017534,2]
[389542160,1759708247043,-1218.9,0.00017534,2]
[389542161,1759708247066,-594.9,0.00017534,2]
[389542162,1759708247089,-642.5,0.00017534,2]
[389542163,1759708247113,-558.64,0.00017534,2]
[389542164,1759708247135,-500.0,0.00017534,2]
[389542165,1759708247150,-500.0,0.00017534,2]
[389542166,1759708247159,-500.0,0.00017534,2]
[389542167,1759708247170,-500.0,0.00017534,2]
[389542168,1759708247179,-1014.98,0.00017534,2]
[389542169,1759708247189,-500.0,0.00017534,2]
[389542170,1759708247199,-500.0,0.00017534,2]
[389542171,1759708247208,-640.19,0.00017534,2]
[389542172,1759708247217,-500.0,0.00017534,2]
[389542173,1759708247227,-639.95631878,0.00017534,2]
[389542174,1759708247237,-779.48,0.00017534,2]
[389542175,1759708247246,-500.0,0.00017534,2]
[389542176,1759708247255,-500.0,0.00017534,2]
[389542177,1759708247265,-500.0,0.00017534,2]
[389542178,1759708247276,-500.0,0.00017534,2]
[389542179,1759708247286,-548.08,0.00017534,2]
[389542180,1759708247295,-500.0,0.00017534,2]
[389542181,1759708247305,-500.0,0.00017534,2]
[389542182,1759708247315,-500.0,0.00017534,2]
[389542183,1759708247325,-500.0,0.00017534,2]
[389542184,1759708247334,-1104.3,0.00017534,2]
[389542185,1759708247344,-766.56,0.00017534,2]
[389542186,1759708247353,-704.45,0.00017534,2]
[389542187,1759708247363,-500.0,0.00017534,2]
[389542188,1759708247373,-500.0,0.00017534,2]
[389542189,1759708247383,-8991.3,0.00017534,2]
[389542190,1759708247393,-500.0,0.00017534,2]
[389542191,1759708247403,-500.0,0.00017534,2]
[389542192,1759708247413,-2614.35,0.00017534,2]
[389542193,1759708247423,-622.82,0.00017534,2]
[389542194,1759708247433,-5705.02,0.00017534,2]
[389542195,1759708247442,-500.0,0.00017534,2]
[389542196,1759708247457,-1451.45,0.00017534,2]
[389542197,1759708247466,-1045.01,0.00017534,2]
[389542198,1759708247476,-500.0,0.00017534,2]
[389542199,1759708247486,-2677.65,0.00017534,2]
[389542200,1759708247498,-1053.86,0.00017534,2]
[389542201,1759708247507,-500.0,0.00017534,2]
[389542202,1759708247517,-3129.37,0.00017534,2]
[389542203,1759708247528,-586.37,0.00017534,2]
[389542204,1759708247538,-500.0,0.00017534,2]
[389542205,1759708247548,-666.22,0.00017534,2]
[389542206,1759708247557,-702.75,0.00017534,2]
[389542207,1759708247567,-500.0,0.00017534,2]
[389542208,1759708247577,-1007.36,0.00017534,2]
[389542209,1759708247587,-610.49,0.00017534,2]
[389542210,1759708247597,-500.0,0.00017534,2]
[389542211,1759708247606,-872.35,0.00017534,2]
[389542212,1759708247616,-500.0,0.00017534,2]
[389542213,1759708247626,-606.83,0.00017534,2]
[389542214,1759708247635,-669.2,0.00017534,2]
[389542215,1759708247645,-8547.32,0.00017534,2]
[389542216,1759708247654,-890.81,0.00017534,2]
[389542217,1759708247663,-517.96,0.00017534,2]
[389542218,1759708247672,-3134.77,0.00017534,2]
[389542219,1759708247682,-1241.09,0.00017534,2]
[389542220,1759708247693,-547.15,0.00017534,2]
[389542221,1759708247702,-500.0,0.00017534,2]
[389542222,1759708247712,-500.0,0.00017534,2]
[389542223,1759708247723,-2628.08,0.00017534,2]
[389542224,1759708247733,-2505.47,0.00017534,2]
[389542225,1759708247743,-2193.08,0.00017534,2]
[389542226,1759708247753,-500.0,0.00017534,2]
[389542227,1759708247762,-500.0,0.00017534,2]
[389542228,1759708247772,-500.0,0.00017534,2]
[389542229,1759708247782,-500.0,0.00017534,2]
[389542230,1759708247791,-500.0,0.00017534,2]
[389542231,1759708247802,-500.0,0.00017534,2]
[389542232,1759708247812,-719.52,0.00017534,2]
[389542233,1759708247822,-1938.28,0.00017534,2]
[389542234,1759708247832,-992.54,0.00017534,2]
[389542235,1759708247842,-2144.27,0.00017534,2]
[389542236,1759708247851,-525.06,0.00017534,2]
[389542237,1759708247861,-1530.24,0.00017534,2]
[389542238,1759708247871,-7479.04,0.00017534,2]
[389542239,1759708247882,-500.0,0.00017534,2]
[389542240,1759708247892,-799.91,0.00017534,2]
[389542241,1759708248061,-657.92,0.00017534,2]
[389542242,1759708248071,-500.0,0.00017534,2]
[389542243,1759708248080,-902.89,0.00017534,2]
[389542244,1759708248090,-1346.47,0.00017534,2]
[389542245,1759708248099,-500.0,0.00017534,2]
[389542246,1759708248108,-722.31,0.00017534,2]
[389542247,1759708248117,-308.28,0.00017534,2]
[389542248,1759708248127,-1232.15,0.00017534,2]
[389542249,1759708248137,-500.0,0.00017534,2]
[389542250,1759708248148,-4267.66,0.00017534,2]
[389542251,1759708248158,-500.0,0.00017534,2]
[389542252,1759708248167,-500.0,0.00017534,2]
[389542253,1759708248177,-500.0,0.00017534,2]
[389542254,1759708248186,-500.0,0.00017534,2]
[389542255,1759708248195,-500.0,0.00017534,2]
[389542256,1759708248204,-1119.55,0.00017534,2]
[389542257,1759708248213,-513.2,0.00017534,2]
[389542258,1759708248223,-372.0,0.00017538,2]
[389542259,1759708248240,-151.0,0.000176,2]
[389542260,1759708248249,-19292.2273969,0.00017653,2]
[389542261,1759708248259,-452.82565042,0.00017733,2]
[389542262,1759708248268,-500.0,0.00017741,2]
[389542263,1759708248278,-500.0,0.00017741,2]
[389542264,1759708248287,-500.0,0.00017741,2]
[389542265,1759708248296,-500.0,0.00017741,2]
[389542266,1759708248305,-500.0,0.00017741,2]
[389542267,1759708248315,-500.0,0.00017741,2]
[389542268,1759708248323,-500.0,0.00017741,2]
[389542269,1759708248332,-500.0,0.00017741,2]
[389542270,1759708248341,-500.0,0.00017741,2]
[389542271,1759708248350,-500.0,0.00017741,2]
[389542272,1759708248359,-200.15181513,0.00017741,2]
[389542273,1759708248368,-500.0,0.00017741,2]
[389542274,1759708248377,-500.0,0.00017741,2]
[389542275,1759708248387,-500.0,0.00017741,2]
[389542276,1759708248396,-500.0,0.00017741,2]
[389542277,1759708248405,-500.0,0.00017741,2]
[389542278,1759708248415,-506.355388,0.00017741,2]
[389542279,1759708248424,-500.0,0.00017741,2]
[389542280,1759708248433,-265.20312553,0.00017741,2]
[389542281,1759708248442,-500.0,0.00017741,2]
[389542282,1759708248457,-261.31371346,0.00017741,2]
[389542283,1759708248467,-159.58690648,0.00017741,2]
[389542284,1759708248478,-300.0,0.00017741,2]
[389542285,1759708248488,-374.25063697,0.00017741,2]
[389542286,1759708248499,-500.0,0.00017741,2]
[389542287,1759708248508,-500.0,0.00017741,2]
[389542288,1759708248518,-500.0,0.00017741,2]
[389542289,1759708248528,-500.0,0.00017741,2]
[389542290,1759708248537,-500.0,0.00017741,2]
[389542291,1759708248546,-500.0,0.00017741,2]
[389542292,1759708248556,-484.14111895,0.00017741,2]
[389542293,1759708248565,-500.0,0.00017741,2]
[389542294,1759708248575,-500.0,0.00017741,2]
[389542295,1759708248585,-500.0,0.00017741,2]
[389542296,1759708248595,-500.0,0.00017741,2]
[389542297,1759708248604,-500.0,0.00017741,2]
[389542298,1759708248614,-176.94049979,0.00017751,2]
[389542299,1759708248623,-500.0,0.00017751,2]
[389542300,1759708248632,-500.0,0.00017754,2]
[389542301,1759708248640,-500.0,0.00017754,2]
[389542302,1759708248649,-500.0,0.00017754,2]
[389542303,1759708248658,-500.0,0.00017754,2]
[389542304,1759708248667,-500.0,0.0001776,2]
[389542305,1759708248678,-500.0,0.0001776,2]
[389542306,1759708248687,-200.24989605,0.0001776,2]
[389542307,1759708248697,-201.16161961,0.0001776,2]
[389542308,1759708248707,-500.0,0.0001776,2]
[389542309,1759708248716,-500.0,0.00017783,2]
[389542310,1759708248726,-500.0,0.00017783,2]
[389542311,1759708248736,-500.0,0.00017783,2]
[389542312,1759708248746,-500.0,0.00017783,2]
[389542313,1759708248755,-500.0,0.00017783,2]
[389542314,1759708248765,-374.79613424,0.00017783,2]
[389542315,1759708248775,-500.0,0.00017783,2]
[389542316,1759708248785,-500.0,0.00017783,2]
[389542317,1759708248795,-3500.5,0.00017798,3]
[389542318,1759708248805,-1750.24,0.00017798,3]
[389542319,1759708248815,-875.12,0.00017798,3]
[389542320,1759708248824,-437.56,0.00017798,3]
[389542321,1759708248833,-293.57808533,0.00017798,3]
[389542322,1759708248842,-533.57524315,0.00017798,3]
[389542323,1759708248852,-151.0,0.000178,2]
[389542324,1759708248861,-499.999999,0.000178,2]
[389542325,1759708248871,-500.0,0.00017808,2]
[389542326,1759708248882,-500.0,0.00017808,2]
[389542327,1759708248891,-500.0,0.00017808,2]
[389542328,1759708248902,-500.0,0.00017808,2]
[389542329,1759708248912,-500.0,0.00017808,2]
[389542330,1759708248922,-500.0,0.00017808,2]
[389542331,1759708248935,-500.0,0.00017808,2]
[389542332,1759708248946,-500.0,0.00017808,2]
[389542333,1759708248956,-500.0,0.00017808,2]
[389542334,1759708248966,-500.0,0.00017808,2]
[389542335,1759708248976,-595.9,0.00017808,2]
[389542336,1759708248987,-500.0,0.00017808,2]
[389542337,1759708248997,-500.0,0.00017808,2]
[389542338,1759708249008,-500.0,0.00017808,2]
[389542339,1759708249017,-500.0,0.00017808,2]
[389542340,1759708249026,-500.0,0.00017808,2]
[389542341,1759708249036,-1218.9,0.00017808,2]
[389542342,1759708249047,-594.9,0.00017808,2]
[389542343,1759708249056,-642.5,0.00017808,2]
[389542344,1759708249066,-558.64,0.00017808,2]
[389542345,1759708249075,-500.0,0.00017808,2]
[389542346,1759708249084,-500.0,0.00017808,2]
[389542347,1759708249092,-500.0,0.00017808,2]
[389542348,1759708249103,-500.0,0.00017808,2]
[389542349,1759708249113,-1014.98,0.00017808,2]
[389542350,1759708249123,-500.0,0.00017808,2]
[389542351,1759708249133,-500.0,0.00017808,2]
[389542352,1759708249142,-640.19,0.00017808,2]
[389542353,1759708249151,-500.0,0.00017808,2]
[389542354,1759708249161,-779.48,0.00017808,2]
[389542355,1759708249171,-500.0,0.00017808,2]
[389542356,1759708249180,-500.0,0.00017808,2]
[389542357,1759708249190,-500.0,0.00017808,2]
[389542358,1759708249199,-548.08,0.00017808,2]
[389542359,1759708249208,-500.0,0.00017808,2]
[389542360,1759708249217,-500.0,0.00017808,2]
[389542361,1759708249226,-500.0,0.00017808,2]
[389542362,1759708249235,-500.0,0.00017808,2]
[389542363,1759708249245,-1104.3,0.00017808,2]
[389542364,1759708249254,-766.56,0.00017808,2]
[389542365,1759708249263,-704.45,0.00017808,2]
[389542366,1759708249273,-500.0,0.00017808,2]
[389542367,1759708249282,-500.0,0.00017808,2]
[389542368,1759708249291,-8991.3,0.00017808,2]
[389542369,1759708249302,-500.0,0.00017808,2]
[389542370,1759708249311,-500.0,0.00017808,2]
[389542371,1759708249321,-2614.35,0.00017808,2]
[389542372,1759708249332,-622.82,0.00017808,2]
[389542373,1759708249341,-5705.02,0.00017808,2]
[389542374,1759708249351,-500.0,0.00017808,2]
[389542375,1759708249360,-1451.45,0.00017808,2]
[389542376,1759708249369,-1045.01,0.00017808,2]
[389542377,1759708249378,-500.0,0.00017808,2]
[389542378,1759708249387,-2677.65,0.00017808,2]
[389542379,1759708249396,-1053.86,0.00017808,2]
[389542380,1759708249405,-500.0,0.00017808,2]
[389542381,1759708249415,-3129.37,0.00017808,2]
[389542382,1759708249424,-586.37,0.00017808,2]
[389542383,1759708249433,-500.0,0.00017808,2]
[389542384,1759708249443,-666.22,0.00017808,2]
[389542385,1759708249457,-702.75,0.00017808,2]
[389542386,1759708249466,-183.4,0.00017808,2]
[389542387,1759708249475,-500.0,0.00017808,2]
[389542388,1759708249484,-1007.36,0.00017808,2]
[389542389,1759708249492,-610.49,0.00017808,2]
[389542390,1759708249500,-500.0,0.00017808,2]
[389542391,1759708249510,-872.35,0.00017808,2]
[389542392,1759708249519,-226.028459,0.00017808,2]
[389542393,1759708249528,-500.0,0.00017808,2]
[389542394,1759708249537,-151.0,0.00017808,2]
[389542395,1759708249546,-606.83,0.00017808,2]
[389542396,1759708249555,-669.2,0.00017808,2]
[389542397,1759708249564,-8547.32,0.00017808,2]
[389542398,1759708249573,-2488.36445,0.00017808,2]
[389542399,1759708249583,-890.81,0.00017808,2]
[389542400,1759708249592,-151.0,0.00017808,2]
[389542401,1759708249602,-2488.36445,0.00017808,2]
[389542402,1759708249611,-151.0,0.00017808,2]
[389542403,1759708249621,-2488.36445,0.00017808,2]
[389542404,1759708249630,-517.96,0.00017808,2]
[389542405,1759708249639,-2488.36445,0.00017808,2]
[389542406,1759708249649,-3134.77,0.00017808,2]
[389542407,1759708249659,-1241.09,0.00017808,2]
[389542408,1759708249668,-547.15,0.00017808,2]
[389542409,1759708249679,-151.0,0.00017808,2]
[389542410,1759708249688,-422.0427971,0.00017808,2]
[389542411,1759708249877,-77.9572029,0.00017808,2]
[389542412,1759708249887,-151.0,0.00017808,2]
[389542413,1759708249896,-500.0,0.00017808,2]
[389542414,1759708249906,-2628.08,0.00017808,2]
[389542415,1759708249916,-151.0,0.00017808,2]
[389542416,1759708249925,-2193.08,0.00017808,2]
[389542417,1759708249935,-2505.47,0.00017808,2]
[389542418,1759708249945,-500.0,0.00017808,2]
[389542419,1759708249955,-500.0,0.00017808,2]
[389542420,1759708249966,-500.0,0.00017808,2]
[389542421,1759708249976,-500.0,0.00017808,2]
[389542422,1759708249985,-500.0,0.00017808,2]
[389542423,1759708249997,-386.61709966,0.00017808,2]
[389542424,1759708250820,-500.0,0.00016438,2]
[389542425,1759708250831,-500.0,0.00016438,2]
[389542426,1759708250841,-500.0,0.00016438,2]
[389542427,1759708250850,-500.0,0.00016438,2]
[389542428,1759708250860,-500.0,0.00016712,2]
[389542429,1759708250870,-500.0,0.00016986,2]
[389542430,1759708250880,-500.0,0.0001726,2]
[389542431,1759708250891,-500.0,0.00017534,2]
[389542432,1759708250900,-113.38290034,0.00017808,2]
[389542433,1759708250910,-151.0,0.00017808,2]
[389542434,1759708250919,-719.52,0.00017808,2]
[389542435,1759708250929,-1938.28,0.00017808,2]
[389542436,1759708250938,-992.54,0.00017808,2]
[389542437,1759708250947,-208.321682,0.00017808,2]
[389542438,1759708250956,-2144.27,0.00017808,2]
[389542439,1759708250965,-1530.24,0.00017808,2]
[389542440,1759708250975,-151.0,0.00017808,2]
[389542441,1759708250984,-500.0,0.00017808,2]
[389542442,1759708250993,-7479.04,0.00017808,2]
[389542443,1759708251003,-799.91,0.00017808,2]
[389542444,1759708251012,-657.92,0.00017808,2]
[389542445,1759708251022,-151.0,0.00017808,2]
[389542446,1759708251032,-500.0,0.00017808,2]
[389542447,1759708251041,-902.89,0.00017808,2]
[389542448,1759708251051,-1346.47,0.00017808,2]
[389542449,1759708251060,-500.0,0.00017808,2]
[389542450,1759708251070,-722.31,0.00017808,2]
[389542451,1759708251079,-1232.15,0.00017808,2]
[389542452,1759708251089,-500.0,0.00017808,2]
[389542453,1759708251099,-4267.66,0.00017808,2]
[389542454,1759708251109,-500.0,0.00017808,2]
[389542455,1759708251119,-500.0,0.00017808,2]
[389542456,1759708251128,-500.0,0.00017808,2]
[389542457,1759708251139,-500.0,0.00017808,2]
[389542458,1759708251148,-500.0,0.00017808,2]
[389542459,1759708251158,-1119.55,0.00017808,2]
[389542460,1759708251167,-513.2,0.00017808,2]
[389542461,1759708251177,-500.0,0.00017808,2]
[389542462,1759708251186,-500.0,0.00017849,2]
[389542463,1759708251195,-500.0,0.00017849,2]
[389542464,1759708251205,-500.0,0.00017849,2]
[389542465,1759708251214,-500.0,0.00017849,2]
[389542466,1759708251223,-500.0,0.00017849,2]
[389542467,1759708251234,-500.0,0.00017849,2]
[389542468,1759708251243,-396.0,0.00017938,2]
[389542469,1759708251252,-637.0,0.00017951,2]
[389542470,1759708251261,-420.0,0.00017951,2]
[389542471,1759708251271,-2789.31617256,0.00017953,2]
[389542472,1759708251280,-176.90347516,0.00017982,2]
[389542473,1759708251290,-2865.05547367,0.00018,2]